bitfinex/quotes_SOLUSD_20240827
["timestamp","ask_amount","ask_price","bid_price","bid_amount"]
[1724725403178,20.0,159.03,158.99,9.70583468]
[1724725403503,0.50820453,159.02,158.99,9.70583468]
[1724725403806,0.50820453,159.02,159.0,6.2892]
[1724725404609,15.0313,159.01,158.94,15.7287]
[1724725404900,65.50820453,159.0,158.94,22.02]
[1724725405586,65.50820453,159.0,158.94,31.72583468]
[1724725406881,65.50820453,159.0,158.94,22.02]
[1724725410109,65.50820453,159.0,158.95,6.2911]
[1724725410280,65.50820453,159.0,158.95,15.99693468]
[1724725412091,65.50820453,159.0,158.95,6.2911]
[1724725412791,65.50820453,159.0,158.94,22.0203]
[1724725417625,65.0,159.0,158.95,6.2912]
[1724725419109,0.50820453,158.99,158.95,6.2912]
[1724725422304,0.50820453,158.99,158.94,22.0202]
[1724725424233,20.0,159.0,158.95,9.70583468]
[1724725424446,20.0,159.0,158.96,6.2905]
[1724725424629,20.0,159.0,158.97,6.2904]
[1724725425036,6.1216,159.04,159.01,6.2887]
[1724725425215,6.1216,159.04,158.99,9.70583468]
[1724725425605,6.1216,159.04,158.99,31.71883468]
[1724725426033,6.1216,159.04,158.99,22.013]
[1724725426257,45.0,159.03,158.99,22.013]
[1724725426418,20.0,159.02,158.99,22.013]
[1724725428913,20.0,159.02,159.01,6.2889]
[1724725429313,20.0,159.04,159.01,6.2889]
[1724725430025,20.50820453,159.04,159.01,6.2889]
[1724725431235,20.0,159.04,159.01,6.2889]
[1724725432424,20.50820453,159.06,159.01,6.2889]
[1724725432647,45.0,159.05,159.01,6.2889]
[1724725432846,20.0,159.04,159.01,6.2889]
[1724725433066,20.50820453,159.04,159.01,6.2889]
[1724725439270,20.50820453,159.04,159.0,15.99503468]
[1724725440638,20.0,159.04,159.0,15.99503468]
[1724725441730,20.0,159.04,158.96,38.82333872]
[1724725441731,22.0538,159.12,159.02,9.70583468]
[1724725441952,0.50820453,159.08,159.05,9.70583468]
[1724725442159,0.50820453,159.07,159.05,9.70583468]
[1724725442359,0.50820453,159.08,159.03,15.99383468]
[1724725443268,65.0,159.08,159.03,15.99383468]
[1724725444738,65.50820453,159.08,159.03,15.99383468]
[1724725447760,65.0,159.08,159.03,15.99383468]
[1724725451754,65.0,159.08,159.04,6.2875]
[1724725451952,65.0,159.08,159.05,9.70583468]
[1724725455408,0.50820453,159.07,159.05,9.70583468]
[1724725455614,65.0,159.08,159.05,9.70583468]
[1724725459300,20.0,159.08,159.05,9.70583468]
[1724725459709,20.0,159.07,159.05,9.70583468]
[1724725459877,20.50820453,159.1,159.05,9.70583468]
[1724725460076,45.0,159.09,159.05,9.70583468]
[1724725460280,20.0,159.08,159.05,9.70583468]
[1724725460885,20.50820453,159.08,159.05,9.70583468]
[1724725461088,20.0,159.08,159.05,9.70583468]
[1724725461901,6.55647236,159.12,159.07,9.70583468]
[1724725462108,381.3,159.15,159.11,25.41733468]
[1724725462311,16.5553,159.17,159.11,25.41733468]
[1724725462312,397.8553,159.17,159.11,25.41733468]
[1724725462602,397.8553,159.17,159.13,9.70583468]
[1724725462774,381.3,159.17,159.13,9.70583468]
[1724725463300,6.2801,159.24,159.17,6.2825]
[1724725463478,6.2801,159.24,159.17,9.70583468]
[1724725463679,12.83036613,159.24,159.17,9.70583468]
[1724725464479,0.50820453,159.23,159.17,9.70583468]
[1724725464983,45.50820453,159.23,159.17,9.70583468]
[1724725466407,20.0,159.22,159.17,9.70583468]
[1724725466575,45.0,159.21,159.17,9.70583468]
[1724725466775,20.0,159.2,159.17,9.70583468]
[1724725467210,20.0,159.2,159.17,15.98833468]
[1724725467414,20.0,159.2,159.19,9.70583468]
[1724725470020,20.0,159.2,159.17,15.98833468]
[1724725470182,20.0,159.2,159.17,9.70583468]
[1724725470510,20.0,159.2,159.15,24.99023468]
[1724725471003,45.0,159.19,159.15,9.70583468]
[1724725471714,45.0,159.19,159.15,15.98913468]
[1724725472221,20.0,159.2,159.17,9.70583468]
[1724725472393,6.2802,159.23,159.17,9.70583468]
[1724725472394,20.0,159.22,159.17,9.70583468]
[1724725472586,45.0,159.21,159.17,9.70583468]
[1724725472786,20.0,159.2,159.17,9.70583468]
[1724725477209,20.50820453,159.2,159.17,9.70583468]
[1724725479618,20.50820453,159.2,159.14,15.7086]
[1724725479911,45.0,159.19,159.15,9.70583468]
[1724725480115,20.50820453,159.18,159.12,6.2845]
[1724725480410,45.50820453,159.17,159.12,15.99033468]
[1724725481115,45.50820453,159.17,159.12,9.70583468]
[1724725481317,20.0,159.16,159.12,9.70583468]
[1724725481523,0.50820453,159.15,159.12,9.70583468]
[1724725481702,45.50820453,159.15,159.12,9.70583468]
[1724725481897,0.50820453,159.14,159.11,15.7122]
[1724725482305,0.50820453,159.14,159.08,15.7153]
[1724725482517,20.50820453,159.14,159.08,15.7153]
[1724725482718,45.0,159.13,159.08,15.7153]
[1724725482904,0.50820453,159.12,159.07,15.9083]
[1724725483100,20.50820453,159.12,159.07,25.61413468]
[1724725483422,45.0,159.11,159.07,25.61413468]
[1724725483716,0.50820453,159.1,159.07,31.90053468]
[1724725484315,45.0,159.11,159.07,31.90053468]
[1724725486313,0.50820453,159.1,159.07,15.99223468]
[1724725487929,0.50820453,159.1,159.07,9.70583468]
[1724725488101,0.50820453,159.1,159.06,6.2869]
[1724725488515,0.50820453,159.1,159.05,31.71123468]
[1724725489015,0.50820453,159.1,159.06,6.2869]
[1724725491205,45.0,159.11,159.07,15.99223468]
[1724725491629,45.50820453,159.11,159.07,15.99223468]
[1724725494438,0.50820453,159.1,159.07,15.99223468]
[1724725500547,45.0,159.11,159.07,15.99223468]
[1724725501030,45.50820453,159.11,159.07,15.99223468]
[1724725502553,0.50820453,159.1,159.07,9.70583468]
[1724725504642,0.50820453,159.1,159.06,6.2868]
[1724725505824,0.50820453,159.1,159.05,6.2873]
[1724725506026,20.50820453,159.1,159.05,6.2873]
[1724725506234,45.0,159.09,159.05,6.2873]
[1724725506435,0.50820453,159.08,159.05,6.2873]
[1724725508064,0.50820453,159.08,159.04,9.70583468]
[1724725508652,26.71040453,159.08,159.02,15.7211]
[1724725508858,26.71040453,159.08,158.99,15.7239]
[1724725508859,15.4903,159.06,158.99,15.7239]
[1724725509070,20.50820453,159.05,158.99,25.42973468]
[1724725509236,45.50820453,159.04,158.99,31.71903468]
[1724725509927,45.50820453,159.04,159.0,6.2891]
[1724725511935,45.50820453,159.04,158.99,22.0135]
[1724725512137,45.0,159.04,158.99,31.71933468]
[1724725512857,45.0,159.04,159.0,6.2892]
[1724725513054,45.0,159.04,159.01,9.70583468]
[1724725513263,20.0,159.05,159.01,15.99463468]
[1724725513431,20.0,159.05,159.01,6.2888]
[1724725513755,20.0,159.05,159.03,9.70583468]
[1724725514756,45.0,159.04,159.03,9.70583468]
[1724725514947,65.0,159.04,159.03,9.70583468]
[1724725518159,20.0,159.04,159.03,9.70583468]
[1724725518466,6.55325517,159.09,159.03,9.70583468]
[1724725518757,15.4604,159.1,159.07,9.70583468]
[1724725518933,15.4604,159.1,159.09,9.70583468]
[1724725519133,12.75712874,159.12,159.09,9.70583468]
[1724725519530,0.50820453,159.11,159.09,9.70583468]
[1724725519734,12.75712874,159.12,159.09,9.70583468]
[1724725519952,0.50820453,159.11,159.09,9.70583468]
[1724725520344,45.50820453,159.11,159.09,9.70583468]
[1724725520542,0.50820453,159.1,159.09,9.70583468]
[1724725520764,0.50820453,159.1,159.07,9.70583468]
[1724725521362,20.50820453,159.1,159.07,9.70583468]
[1724725521666,45.0,159.09,159.07,9.70583468]
[1724725521966,0.50820453,159.08,159.07,9.70583468]
[1724725522170,45.50820453,159.09,159.07,9.70583468]
[1724725527571,45.50820453,159.09,159.06,6.2869]
[1724725528577,45.0,159.09,159.06,6.2869]
[1724725529869,45.0,159.09,159.05,15.7175]
[1724725529870,0.50820453,159.08,159.05,15.7175]
[1724725530177,45.0,159.09,159.05,15.7175]
[1724725530764,45.0,159.09,159.06,6.2868]
[1724725530968,0.50820453,159.08,159.06,6.2868]
[1724725536174,0.50820453,159.08,159.05,22.0048]
[1724725542182,45.0,159.09,159.05,22.0048]
[1724725542183,45.0,159.09,159.05,25.42333468]
[1724725543192,381.3,159.15,159.09,15.7136]
[1724725543395,381.3,159.15,159.12,6.2844]
[1724725543674,381.3,159.15,159.11,9.70583468]
[1724725543675,381.3,159.15,159.11,15.99063468]
[1724725544084,381.3,159.15,159.12,6.2844]
[1724725544885,65.0,159.14,159.12,6.2844]
[1724725545251,65.50820453,159.14,159.09,15.7136]
[1724725546758,65.50820453,159.14,159.1,6.2853]
[1724725549286,9.70583468,159.12,159.06,15.7173]
[1724725549463,65.50820453,159.11,159.06,22.0039]
[1724725549664,0.50820453,159.1,159.06,22.0039]
[1724725550374,0.50820453,159.1,159.07,6.2863]
[1724725551894,65.0,159.11,159.07,6.2863]
[1724725552070,20.0,159.11,159.06,25.42313468]
[1724725552264,20.0,159.12,159.09,15.714]
[1724725552490,20.0,159.15,159.09,15.714]
[1724725552671,45.0,159.14,159.1,6.285]
[1724725552987,20.0,159.13,159.1,6.285]
[1724725554788,20.0,159.13,159.09,21.9997]
[1724725554991,20.0,159.13,159.09,16.97112516]
[1724725555173,20.0,159.13,159.11,6.2849]
[1724725555376,20.0,159.14,159.11,6.2849]
[1724725555669,20.0,159.14,159.12,6.2845]
[1724725561406,20.50820453,159.15,159.12,6.2845]
[1724725562392,20.50820453,159.15,159.11,21.9963]
[1724725562594,0.50820453,159.14,159.11,15.7115]
[1724725563977,9.70583468,159.13,159.07,22.0018]
[1724725564183,65.50820453,159.12,159.07,22.0018]
[1724725570377,65.0,159.12,159.07,22.0018]
[1724725570576,0.50820453,159.11,159.07,22.0018]
[1724725571312,20.0,159.12,159.09,15.7135]
[1724725571511,0.50820453,159.12,159.09,21.9992]
[1724725571815,45.50820453,159.12,159.07,6.2865]
[1724725571981,20.0,159.11,159.07,6.2865]
[1724725572294,0.50820453,159.1,159.07,6.2865]
[1724725582512,45.50820453,159.1,159.06,6.2869]
[1724725583816,45.50820453,159.1,158.98,22.1195]
[1724725583817,42.24823468,159.09,158.98,22.1195]
[1724725584017,0.50820453,159.08,159.01,6.2888]
[1724725584205,55.21403921,159.08,159.01,6.2888]
[1724725584396,0.50820453,159.07,159.02,6.2884]
[1724725584601,20.50820453,159.07,159.02,6.2884]
[1724725584804,45.0,159.06,159.02,6.2884]
[1724725585019,20.0,159.05,159.02,6.2884]
[1724725586127,20.0,159.08,159.02,6.2884]
[1724725586429,45.0,159.07,159.03,6.288]
[1724725586598,20.0,159.06,159.03,6.288]
[1724725587223,20.0,159.06,159.01,10.96342117]
[1724725587224,20.0,159.06,159.04,6.2876]
[1724725587539,20.0,159.08,159.04,6.2876]
[1724725587696,20.0,159.08,159.05,6.2871]
[1724725587899,20.0,159.1,159.05,6.2871]
[1724725588129,45.0,159.09,159.05,6.2871]
[1724725588295,6.55486503,159.11,159.06,6.2868]
[1724725588808,6.55486503,159.11,159.07,6.2862]
[1724725590003,20.0,159.1,159.07,6.2862]
[1724725598213,20.0,159.1,159.08,6.2861]
[1724725598416,20.0,159.1,159.07,6.2864]
[1724725599444,20.0,159.1,159.06,15.7164]
[1724725599807,20.0,159.1,159.06,22.0031]
[1724725601436,20.50820453,159.1,159.06,22.0031]
[1724725602024,20.0,159.1,159.06,22.0031]
[1724725603418,20.0,159.1,159.07,6.2861]
[1724725607225,20.50820453,159.1,159.07,6.2861]
[1724725608039,20.0,159.1,159.07,6.2861]
[1724725611543,6.3067,159.14,159.09,6.2857]
[1724725611716,65.0,159.13,159.09,6.2857]
[1724725616438,65.0,159.13,159.09,7.54282459]
[1724725616635,20.0,159.13,159.09,7.54282459]
[1724725616838,20.0,159.15,159.09,7.54282459]
[1724725617030,45.0,159.14,159.09,7.54282459]
[1724725617225,20.0,159.15,159.09,7.54282459]
[1724725617226,20.0,159.13,159.1,6.2853]
[1724725617833,20.0,159.15,159.1,6.2853]
[1724725619559,20.0,159.15,159.11,6.2849]
[1724725619848,6.55576816,159.17,159.08,25.42043468]
[1724725619849,6.55576816,159.17,159.14,6.2837]
[1724725620016,273.73926309,159.21,159.14,6.2837]
[1724725620220,6.55220748,159.2,159.12,26.67325198]
[1724725620523,6.55220748,159.2,159.13,1.25669691]
[1724725620846,6.55220748,159.2,159.13,6.2841]
[1724725621019,0.50820453,159.19,159.13,6.2841]
[1724725621523,20.50820453,159.19,159.13,6.2841]
[1724725621724,45.0,159.18,159.13,6.2841]
[1724725621922,20.0,159.17,159.13,6.2841]
[1724725622151,20.50820453,159.17,159.13,6.2841]
[1724725624744,20.50820453,159.17,159.12,21.995]
[1724725625329,30.21403921,159.17,159.12,15.7105]
[1724725625528,45.0,159.16,159.1,6.2852]
[1724725625849,20.50820453,159.15,159.1,6.2852]
[1724725626027,0.50820453,159.14,159.1,6.2852]
[1724725626223,0.50820453,159.14,159.09,21.9999]
[1724725626738,45.50820453,159.14,159.09,21.9999]
[1724725626926,20.0,159.13,159.09,21.9999]
[1724725627126,0.50820453,159.12,159.09,21.9999]
[1724725628448,20.0,159.13,159.09,21.9999]
[1724725630449,0.50820453,159.12,159.07,6.2865]
[1724725630664,45.50820453,159.12,159.07,6.2865]
[1724725630838,20.0,159.11,159.07,6.2865]
[1724725631044,0.50820453,159.1,159.07,6.2865]
[1724725633033,0.50820453,159.1,159.05,14.7175]
[1724725633353,45.50820453,159.1,159.02,15.7212]
[1724725633558,20.0,159.09,159.02,15.7212]
[1724725633731,0.50820453,159.08,159.04,6.2876]
[1724725634151,45.50820453,159.08,159.04,6.2876]
[1724725634455,0.50820453,159.07,159.02,22.0096]
[1724725634749,20.50820453,159.07,159.02,22.0096]
[1724725634947,45.0,159.06,159.02,22.0096]
[1724725635156,0.50820453,159.05,159.02,22.0096]
[1724725636058,45.0,159.06,159.02,22.0096]
[1724725638829,20.0,159.07,159.02,22.0096]
[1724725639029,0.50820453,159.06,159.02,22.0096]
[1724725639421,20.50820453,159.06,159.02,22.0096]
[1724725639627,20.0,159.06,159.02,22.0096]
[1724725640371,20.0,159.06,159.02,21.0096]
[1724725641438,0.50820453,159.05,159.02,21.0096]
[1724725641641,45.50820453,159.05,159.02,21.0096]
[1724725642436,45.0,159.05,159.02,21.0096]
[1724725644336,0.50820453,159.04,159.02,21.0096]
[1724725644843,45.0,159.05,159.02,21.0096]
[1724725646059,0.50820453,159.04,159.02,21.0096]
[1724725646856,0.50820453,159.04,159.02,14.7212]
[1724725650068,45.0,159.05,159.03,6.2879]
[1724725650238,20.0,159.06,159.04,6.2875]
[1724725650439,20.0,159.09,159.04,6.2875]
[1724725651740,45.0,159.08,159.04,6.2875]
[1724725651940,20.0,159.07,159.04,15.99333468]
[1724725653872,20.0,159.07,159.04,9.70583468]
[1724725654076,20.0,159.07,159.02,30.71513468]
[1724725654372,0.50820453,159.06,159.03,6.288]
[1724725655270,20.0,159.07,159.03,6.288]
[1724725656345,20.50820453,159.07,159.03,6.288]
[1724725657883,20.0,159.07,159.03,6.288]
[1724725662973,20.50820453,159.07,159.03,6.288]
[1724725663267,20.50820453,159.07,159.02,14.7212]
[1724725663469,45.0,159.06,159.02,14.7212]
[1724725663678,20.50820453,159.05,159.02,14.7212]
[1724725663849,0.50820453,159.04,159.02,14.7212]
[1724725664660,0.50820453,159.04,159.01,6.2885]
[1724725665379,0.50820453,159.04,158.99,15.724]
[1724725665380,0.50820453,159.04,159.0,6.2892]
[1724725665557,45.50820453,159.04,159.0,6.2892]
[1724725666675,20.0,159.03,159.0,6.2892]
[1724725666985,0.50820453,159.02,159.0,6.2892]
[1724725667277,0.50820453,159.02,158.99,22.0136]
[1724725667873,0.50820453,159.02,158.99,15.724]
[1724725668174,45.50820453,159.02,158.98,6.29]
[1724725668382,45.0,159.02,158.98,6.29]
[1724725668753,20.0,159.03,158.99,9.70583468]
[1724725668949,20.50820453,159.06,158.99,15.99543468]
[1724725669171,45.0,159.05,158.99,15.99543468]
[1724725669366,20.50820453,159.04,158.99,15.99543468]
[1724725669574,45.0,159.03,158.99,15.99543468]
[1724725669769,20.0,159.02,158.99,15.99543468]
[1724725671991,6.55717608,159.08,159.01,9.70583468]
[1724725672166,20.0,159.07,159.03,9.70583468]
[1724725672473,20.50820453,159.07,159.03,9.70583468]
[1724725672984,20.50820453,159.07,159.01,9.70583468]
[1724725673370,45.0,159.06,159.01,9.70583468]
[1724725673571,20.50820453,159.05,159.01,9.70583468]
[1724725673773,45.50820453,159.04,159.01,9.70583468]
[1724725674283,45.0,159.04,159.01,9.70583468]
[1724725674791,45.0,159.04,159.01,15.99463468]
[1724725675171,45.50820453,159.04,159.01,6.2888]
[1724725680672,45.0,159.04,159.01,6.2888]
[1724725681188,45.50820453,159.04,159.01,6.2888]
[1724725682480,45.50820453,159.04,159.0,15.7223]
[1724725682803,20.0,159.03,159.0,15.7223]
[1724725683099,45.50820453,159.02,159.0,15.7223]
[1724725683275,0.50820453,159.01,159.0,15.7223]
[1724725683471,0.50820453,159.01,158.97,15.7261]
[1724725683695,20.50820453,159.01,158.97,15.7261]
[1724725684798,20.50820453,159.01,158.97,22.0164]
[1724725685805,45.0,159.0,158.97,22.0164]
[1724725686102,0.50820453,158.99,158.97,22.0164]
[1724725688207,45.0,159.0,158.97,22.0164]
[1724725688391,20.0,159.01,158.98,15.99583468]
[1724725688580,20.50820453,159.02,158.98,15.99583468]
[1724725692080,20.0,159.02,158.98,15.99583468]
[1724725692282,20.0,159.05,158.98,15.99583468]
[1724725692487,6.2869,159.06,158.91,22.74301338]
[1724725692488,45.0,159.04,159.0,25.42893468]
[1724725692694,45.0,159.05,159.0,31.71813468]
[1724725693674,20.0,159.04,159.0,31.71813468]
[1724725694491,20.0,159.04,159.01,6.2888]
[1724725695507,20.0,159.04,159.03,6.2881]
[1724725695705,20.0,159.04,159.03,22.0084]
[1724725697595,20.0,159.04,159.02,9.70583468]
[1724725697798,20.50820453,159.07,159.02,15.99403468]
[1724725697991,45.0,159.06,159.02,15.99403468]
[1724725698198,20.0,159.05,159.02,15.99403468]
[1724725698697,20.0,159.05,159.03,6.2879]
[1724725703487,20.0,159.05,159.04,6.2877]
[1724725703690,20.0,159.05,159.02,25.42633468]
[1724725703884,20.50820453,159.1,159.02,25.42633468]
[1724725704089,45.0,159.09,159.02,25.42633468]
[1724725704304,20.50820453,159.08,159.02,25.42633468]
[1724725704498,45.50820453,159.07,159.02,25.42633468]
[1724725704724,20.0,159.06,159.04,6.2877]
[1724725705598,20.50820453,159.06,159.04,6.2877]
[1724725708125,20.0,159.06,159.04,6.2877]
[1724725715306,20.50820453,159.06,159.02,15.7205]
[1724725716713,20.50820453,159.06,159.03,6.288]
[1724725718921,20.50820453,159.06,159.02,15.7205]
[1724725718922,20.50820453,159.06,159.02,22.0089]
[1724725719130,45.0,159.05,159.02,22.0089]
[1724725719442,20.0,159.04,159.02,22.0089]
[1724725720735,20.0,159.04,159.03,6.2881]
[1724725724740,20.0,159.04,159.02,15.7205]
[1724725724936,0.50820453,159.03,159.02,15.7205]
[1724725725136,0.50820453,159.05,159.02,15.7205]
[1724725725309,45.50820453,159.05,159.02,15.7205]
[1724725725515,20.50820453,159.04,159.01,6.2888]
[1724725726026,20.50820453,159.04,158.99,15.724]
[1724725726221,45.0,159.03,158.99,15.724]
[1724725726422,20.0,159.02,158.99,15.724]
[1724725727020,20.0,159.02,158.99,22.0133]
[1724725729223,0.50820453,159.01,158.99,22.0133]
[1724725730542,45.50820453,159.01,158.99,22.0133]
[1724725731741,20.0,159.0,158.97,6.2902]
[1724725731939,0.50820453,158.99,158.97,6.2902]
[1724725733639,20.0,159.0,158.98,15.99583468]
[1724725733842,20.50820453,159.05,158.98,15.99583468]
[1724725734025,52.06482609,159.04,158.98,15.99583468]
[1724725734228,20.0,159.03,158.98,15.99583468]
[1724725734443,45.0,159.02,158.98,15.99583468]
[1724725734782,20.0,159.01,158.98,15.99583468]
[1724725736038,20.0,159.01,158.99,6.2894]
[1724725738525,20.0,159.05,158.99,6.2894]
[1724725738723,45.0,159.04,158.99,6.2894]
[1724725738932,20.0,159.03,158.99,6.2894]
[1724725741958,20.0,159.03,159.0,6.2892]
[1724725742163,20.0,159.03,159.0,15.7224]
[1724725742461,20.0,159.03,158.97,15.7261]
[1724725742665,20.0,159.03,158.97,25.43193468]
[1724725742870,0.50820453,159.02,158.98,6.29]
[1724725743163,45.50820453,159.02,158.97,22.0165]
[1724725743337,20.50820453,159.01,158.97,22.0165]
[1724725743538,45.0,159.0,158.97,22.0165]
[1724725743737,0.50820453,158.99,158.97,22.0165]
[1724725750457,45.0,159.0,158.97,22.0165]
[1724725750661,20.0,159.01,158.97,22.0165]
[1724725750967,20.0,159.01,158.99,6.2896]
[1724725751168,20.0,159.02,158.99,6.2896]
[1724725751376,45.0,159.01,158.99,6.2896]
[1724725751574,20.0,159.0,158.99,6.2896]
[1724725751778,20.0,159.0,158.98,6.29]
[1724725752082,0.50820453,158.99,158.97,15.7261]
[1724725752662,0.50820453,158.99,158.97,22.0164]
[1724725755768,45.50820453,158.99,158.97,22.0164]
[1724725755966,0.50820453,158.98,158.97,22.0164]
[1724725760674,20.50820453,158.98,158.94,15.7289]
[1724725761064,45.0,158.97,158.94,15.7289]
[1724725761395,20.50820453,158.96,158.94,15.7289]
[1724725761692,0.50820453,158.95,158.94,15.7289]
[1724725762568,45.50820453,158.95,158.94,15.7289]
[1724725764507,45.50820453,158.95,158.89,9.70583468]
[1724725764508,45.50820453,158.95,158.92,6.2924]
[1724725764965,6.55744877,158.99,158.94,6.2916]
[1724725765165,6.2006,159.1,158.98,9.70583468]
[1724725765393,0.50820453,159.09,159.03,15.7197]
[1724725765572,6.2006,159.1,159.03,25.42553468]
[1724725765779,6.2006,159.1,159.05,6.2872]
[1724725766771,20.0,159.09,159.05,6.2872]
[1724725767785,45.0,159.08,159.05,6.2872]
[1724725768093,20.0,159.07,159.05,6.2872]
[1724725771302,20.0,159.07,159.06,9.70583468]
[1724725771803,6.6187,159.14,159.06,25.42303468]
[1724725771991,6.6187,159.14,159.08,15.99193468]
[1724725772172,6.6187,159.14,159.08,9.70583468]
[1724725772801,6.6187,159.14,159.08,6.286]
[1724725773006,6.6187,159.14,159.09,9.70583468]
[1724725773210,65.0,159.13,159.09,9.70583468]
[1724725773702,65.0,159.13,159.07,6.2865]
[1724725773891,65.0,159.13,159.08,9.70583468]
[1724725774094,0.07896886,159.09,159.08,9.70583468]
[1724725774578,0.07896886,159.09,159.07,15.99233468]
[1724725784118,0.07896886,159.09,159.06,22.004]
[1724725788112,0.07896886,159.09,159.06,15.7172]
[1724725789192,0.07896886,159.09,159.03,31.71373468]
[1724725789398,0.07896886,159.09,159.03,25.42593468]
[1724725789615,0.07896886,159.09,159.05,6.2873]
[1724725790225,0.58717339,159.09,159.05,6.2873]
[1724725791816,0.58717339,159.09,159.04,6.2875]
[1724725791998,0.58717339,159.09,159.03,15.7201]
[1724725793120,0.58717339,159.09,159.04,6.2873]
[1724725793621,20.58717339,159.09,159.04,6.2873]
[1724725793919,45.0,159.08,159.04,6.2873]
[1724725794115,0.50820453,159.07,159.04,6.2873]
[1724725794848,45.50820453,159.08,159.04,6.2873]
[1724725795308,45.0,159.08,159.04,6.2873]
[1724725796020,45.0,159.08,159.01,16.1314]
[1724725796201,0.50820453,159.07,159.03,6.288]
[1724725799613,45.50820453,159.08,159.03,6.288]
[1724725799812,0.50820453,159.07,159.03,6.288]
[1724725800499,20.07896886,159.09,159.05,15.99293468]
[1724725800705,0.07896886,159.09,159.06,6.2866]
[1724725801616,0.07896886,159.09,159.05,25.42363468]
[1724725801817,0.07896886,159.09,159.05,31.71093468]
[1724725802020,20.07896886,159.09,159.05,31.71093468]
[1724725802699,20.07896886,159.09,159.05,22.0051]
[1724725803616,20.07896886,159.09,159.06,6.2869]
[1724725803797,0.07896886,159.09,159.07,6.2863]
[1724725806412,0.58717339,159.09,159.06,6.2868]
[1724725809916,0.07896886,159.09,159.06,6.2868]
[1724725815431,0.07896886,159.09,159.08,6.2861]
[1724725822321,0.07896886,159.09,159.07,22.002]
[1724725823847,0.07896886,159.09,159.08,6.2861]
[1724725825248,0.07896886,159.09,159.08,17.24903144]
[1724725829721,0.07896886,159.09,159.07,15.7155]
[1724725829922,9.70583468,159.08,158.98,6.24101997]
[1724725830153,9.70583468,159.08,158.99,5.19316875]
[1724725830154,45.50820453,159.07,158.99,5.19316875]
[1724725830443,65.0,159.07,159.02,6.2883]
[1724725830652,20.0,159.07,159.02,6.2883]
[1724725831041,20.50820453,159.08,159.01,15.722]
[1724725831352,0.50820453,159.06,159.01,22.0107]
[1724725831645,20.50820453,159.06,159.01,22.0107]
[1724725832243,20.50820453,159.06,159.01,15.722]
[1724725832550,20.50820453,159.06,158.99,6.2895]
[1724725832727,45.0,159.05,158.99,6.2895]
[1724725834748,0.07896886,159.0,158.99,6.2895]
[1724725836651,0.07896886,159.0,158.98,15.7251]
[1724725836821,0.07896886,159.0,158.96,6.2907]
[1724725837448,0.58717339,159.0,158.96,6.2907]
[1724725837744,0.07896886,159.0,158.96,6.2907]
[1724725837927,0.07896886,159.0,158.97,6.2904]
[1724725839551,0.07896886,159.0,158.98,1.25789384]
[1724725839743,0.07896886,159.0,158.97,6.2904]
[1724725840136,0.07896886,159.0,158.98,6.29]
[1724725840950,0.07896886,159.0,158.99,6.2897]
[1724725841548,0.07896886,159.0,158.99,7.54752311]
[1724725843745,0.07896886,159.0,158.99,17.25335779]
[1724725847379,0.07896886,159.0,158.99,6.2897]
[1724725855272,0.07896886,159.0,158.99,7.54743087]
[1724725855452,0.07896886,159.0,158.99,17.25326555]
[1724725856148,0.07896886,159.0,158.99,15.99553468]
[1724725858171,0.07896886,159.0,158.99,17.25319197]
[1724725859079,0.07896886,159.0,158.99,15.99553468]
[1724725859946,0.07896886,159.0,158.99,6.2897]
[1724725861840,0.07896886,159.0,158.98,15.725]
[1724725862150,0.07896886,159.0,158.96,6.2908]
[1724725864462,0.07896886,159.0,158.97,6.2904]
[1724725865669,0.07896886,159.0,158.96,6.2908]
[1724725868652,20.07896886,159.0,158.95,22.0191]
[1724725868856,45.50820453,158.99,158.95,22.0191]
[1724725869584,45.0,158.99,158.95,22.0191]